Workbook

Sheet Cover Page
D1: Add company logo
N2: Version 20.1
N13: Notes:
N14: This template may require adjustments by individual operators to meet specific reporting requirements as defined in the site Permit(s)
B29: Annual Performance Report 2021
B31: Permit EPR/WP3239SJ
B33: Tyseley Energy from Waste Plant
B37: Veolia ES Birmingham Limited
B39: Year: | C39: 2021
B41: Address: | C41: James Road, Tyseley, Birmingham, B11 2BA
B43: Tel: | C43: 0203 567 3742
B45: Email: | C45: christine.skaramaga@veolia.com
B47: Prepared by: | C47: Christine Skaramaga | F47: Position: | G47: Midlands Region Environmental Engineer
B50: Approved by: | C50: Mark Gilsenan | F50: Position: | G50: Plant Manager
B52: Version: | C52: 1
B54: Issue Date: | C54: 2022-01-28

Sheet Contents
A1: =+'Cover Page'!$B$29 -> Annual Performance Report 2021 | E1: =+'Cover Page'!$B$33 -> Tyseley Energy from Waste Plant
A3: Contents | K3: Notes:
A4: Section | B4: Subject | H4: Page | K4: Section references and Page nos. to be inserted
B5: Facility Information | H5: 3 | K5: Sections and Subjects may require adjustment by individual operators to meet specific reporting requirements as defined in the sites Permit(s)
B6: Operational Summary | H6: 4
B7: Operational Data | H7: 5
B8: Performance Form 1 | H8: 6
B9: Energy Form 1 | H9: 7
B10: Permit Compliance | H10: 8
B11: Improvements | H11: 9
B12: Public Liaison | H12: 10
B13: Residue Quality - Optional | H13: 11
B14: Emissions to Water | H14: 12
B15: Emissions to Air (periodically monitored) | H15: 13
B16: Emissions to Air (continuously monitored) | H16: 14
B17: Hydrogen Chloride emissions | H17: 15
B18: Sulphur Dioxide emissions | H18: 16
B19: Oxides of Nitrogen emissions | H19: 17
B20: Total Organic Carbon emissions | H20: 18
B21: Particulate Matter emissions | H21: 19
B22: Carbon Monoxide emissions | H22: 20
A25: Version Control
A26: Section | B26: Information | H26: Date
A33: Distribution
A34: Copy | B34: Name, Role | H34: No.
A35: 1 | B35: Sarah Dennis, EA Installations Technical Leader | H35: 1
A43: This report is required under the Industrial Emissions Directive’s Article 55(2) requirements on reporting and public information on waste incineration plants and co-incineration plants, which require the operator to produce an annual report on the functioning and monitoring of the plant and make it available to the public.

Sheet Facility Info
A1: =+'Cover Page'!$B$29 -> Annual Performance Report 2021 | E1: =+'Cover Page'!$B$33 -> Tyseley Energy from Waste Plant
A3: Plant Description and Design | K3: Notes:
A5: The main purpose of the activity carried out at this facility is to incinerate, primarily, Municipal Solid Waste (MSW) as defined by EWC 20 03 01, recovering energy in the form of steam and electricity generating 27 MW for export to the National Grid. The permit covers the site and the entire incineration process which includes all incineration lines, waste reception and storage, waste-fuel and air supply systems, boilers, facilities for the treatment of exhaust gases, on-site facilities for handling and storage of residues and operations, recording and monitoring conditions. | K5: Include summary of plant design, design capacity, no. of combustion lines, electrical and heat capacity and any other general information that describes the facility, its location and purpose
A20: Summary of Operational Processes and Procedures
A22: This facility consists of two incineration lines, each capable of processing approximately 23.5 tonnes per hour, which takes approximately 350,000 tonnes of Birmingham’s waste each year but this, is dependent on two factors: actual operating hours and calorific value of the waste being burnt. The third incineration line processes clinical waste and other designated hazardous wastes (CWI) at a nominal rate of 600kg/hour. All emissions to air from the two 80m high chimneys are controlled to meet the emission limits included in the Environmental Permit. the flue gases released into the atmosphere are continuously monitored for Particulate Matter (total), TOC, Hydrogen Chloride, Oxides of Nitrogen, Carbon Monoxide, Ammonia and Sulphur Dioxide. Bi-annual check monitoring of this equipment is carried out by approved contractors using indepent extractive sampling methods, at which time emissions of Metals, Dioxins and other substances are also monitored. The Continious Emissions Monitoring equipment (CEMs) was in service during 2020 for 100% of the plant operating time. This equipment is stringently monitored with routine calibration checks and is standardised to BS EN14181:2004. Half hourly (10 minute for CO) and daily average emission data for continuously monitored emissions is supplied to the Environment Agency on a monthly basis. | K22: Include summary of key processes and procedures such as (but not limited to); waste reception, control rooms, grate, bed and boiler, energy & heat generation, cooling systems, residue management, emission controls, health and safety systems, maintenance

Sheet Operational Summary
A1: =+'Cover Page'!$B$29 -> Annual Performance Report 2021 | E1: =+'Cover Page'!$B$33 -> Tyseley Energy from Waste Plant
A3: Summary of Plant Operations and Maintenance during the reporting year | K3: Notes:
A5: Common outage NDT inspections Furnace tube & membrane repairs Superheated tube replacements Superheated bottom header replacement Drum and superheater safety valve replacement Main stop and bypass, electric stop and non return valve refurbishment Refractory repairs to furnace Inconel repairs/overlay to furnace sidewalls and motor Ash discharger replacement (boiler 1) Grate overhaul to all undercarriages and grate replacements ID and FD fan drives service Inspection hatches replacement ID fan allignment, bearing and internal inspection Stack liner internal inspection and internal strengthening with additional support internal plating Calibration of site instruments Primary air fan and motor replacement DA valve replacement Clinical boiler control valves replaced Turbine exhaust and steam end bearing replacement CSEVs replaced Generator minor overhaul Generator heat exchangers removed for pressure test and clean Vibration equipment upgraded CR refurbishement DCS/SCADA control system upgrade Transformer service and tap changer maintenance Turbine and compressor MCC serviced 11kV board and switchgear inspection Clinical boiler clean Primary and secondary combustion chamber repairs | K5: Include summary of key operational and/or maintenance activity undertaken in the year, such as any major component upgrades and/or replacements
A29: Summary of Residue Handling for the reporting year
A31: Ash residues (known as Incinerator Bottom Ash or IBA) are currently sent to Castle Bromwich for reprocessing. This material is reprocessed by extracting further ferrous and non-ferrous metals and by crushing, trommelling and screening to produce a graded, quality material that is useable as substitute aggregate in such applications as road building. Ferrous metal removed from the IBA is sent to a steel manufacturer for recycling. Finer particulate matter, know as Air Pollution Control (APC) residues, removed from the flue gases by fabric filter is collected and sent to the Minosus Hazardous Waste underground storage facility in Cheshire or to Empire Works, a Veolia facility, for treatment. | K31: Include in here a summary of residue handling regimes and destinations

Sheet Operational Data
A1: =+'Cover Page'!$B$29 -> Annual Performance Report 2021 | E1: =+'Cover Page'!$B$33 -> Tyseley Energy from Waste Plant
A3: Operational Data | K3: Notes:
A4: Plant Size | B4: 440500 | D4: tonnes pa | F4: MWth | H4: MWe | K4: * - RDF to include SRF
A5: No. of combustion lines | B5: 2 | D5: No. of Turbines: | F5: 1 | K5: ** - CHP plants only
K6: 2020 updates include; heat in MWh, water in Litres, NCV in MJ/kg
A7: Waste types received | B7: Unit | C7: Q1 | D7: Q2 | E7: Q3 | F7: Q4 | G7: Year Total | H7: %
A8: Household / Local Authority | B8: tonnes | C8: 93258.72 | D8: 85152.98 | E8: 96478.96 | F8: 96513 | G8: =SUM(C8:F8) -> 371403.66 | H8: =IF(G8>0,G8/$G$18,"-") -> 0.9800864674 | K8: Availabiity Definition: 'the availability of a line is to be calculated by the number of hours the line reported Continuously Monitored emission levels to the Regulator through the calendar year divided by the total number of hours in that year. The overall plant availability is calculated as the Mean of all lines in the plant. For clarity this includes periods of Other Than Normal Operating Conditions (OTNOC) and abnormal operation.' Rationale: The primary function of an Energy from Waste facility is the disposal of waste. It follows therefore that the availability of a plant is determined by the period of time a facility spends undertaking this activity.
A9: Commercial & Industrial | C9: 937.1 | D9: 263 | E9: 55.963 | F9: 890 | G9: =SUM(C9:F9) -> 2146.063 | H9: 0.005663184107
A10: Hazardous | C10: 877.3 | D10: 1061.27 | E10: 947.103 | F10: 896.3 | G10: 3781.973 | H10: 0.009980140092
A11: Clinical | C11: 356.67 | D11: 360.8 | E11: 441.825 | F11: 458.9 | G11: 1618.195 | H11: 0.00427020838
A12: Waste wood (biomass) | G12: 0 | H12: -
A13: Refuse Derived Fuel * - H'hold/LA | G13: =SUM(C13:F13) -> 0 | H13: -
A14: Refuse Derived Fuel * - C&I | G14: 0 | H14: -
A15: Other [Please specify] | G15: 0 | H15: -
A16: Other [Please specify]
A17: Other [Please specify]
A18: Total waste received | C18: =SUM(C8:C17) -> 95429.79 | D18: =SUM(D8:D17) -> 86838.05 | E18: =SUM(E8:E17) -> 97923.851 | F18: =SUM(F8:F17) -> 98758.2 | G18: =SUM(G8:G17) -> 378949.891 | H18: =IF(G18>0,G18/$G$18,"-") -> 1
A19: Rejected Waste | G19: =SUM(C19:F19) -> 0 | H19: =IF(G19>0,G19/$G$18,"-") -> -
A20: Unprocessed waste transferred out | G20: =SUM(C20:F20) -> 0 | H20: =IF(G20>0,G20/$G$18,"-") -> -
A21: Total waste combusted | C21: 92521 | D21: 80313 | E21: 101734 | F21: 100865 | G21: =SUM(C21:F21) -> 375433 | H21: =IF(G21>0,G21/$G$18,"-") -> 0.9907193772
A23: Energy Usage / Export | B23: Unit | C23: Q1 | D23: Q2 | E23: Q3 | F23: Q4 | G23: Year Total | H23: KWh/te
A24: Power Generated | B24: MWh | C24: 53005 | D24: 43627 | E24: 57078 | F24: 56956 | G24: =SUM(C24:F24) -> 210666 | H24: =IF(G24>0,G24*1000/$G$21,"-") -> 561.1280841
A25: Power Exported | C25: 46230 | D25: 38586 | E25: 49847 | F25: 49493 | G25: =SUM(C25:F25) -> 184156 | H25: =IF(G25>0,G25*1000/$G$21,"-") -> 490.5162839
A26: Power Used on site | C26: =(C24+C27)-C25 -> 6925.3 | D26: =(D24+D27)-D25 -> 5591.9 | E26: 7231 | F26: 7480 | G26: =SUM(C26:F26) -> 27228.2 | H26: =IF(G26>0,G26*1000/$G$21,"-") -> 72.52479137
A27: Power Imported | C27: 150.3 | D27: 550.9 | E27: 0 | F27: 17 | G27: 718.2 | H27: =IF(G27>0,G27*1000/$G$21,"-") -> 1.912991133
A28: Parasitic Load | B28: % | C28: =IF(C24>0,1-C25/(C24+C27),"-") -> 0.1302842802 | D28: =IF(D24>0,1-D25/(D24+D27),"-") -> 0.1265768631 | E28: =IF(E24>0,1-E25/(E24+E27),"-") -> 0.1266862889 | F28: =IF(F24>0,1-F25/(F24+F27),"-") -> 0.1312902603 | G28: =IF(G24>0,1-G25/(G24+G27),"-") -> 0.1288090595
A29: Thermal Energy Produced ** | B29: MWh | G29: =SUM(C29:F29) -> 0 | H29: =IF(G29>0,G29*1000/$G$21,"-") -> -
A30: Thermal Energy Exported ** | G30: 0 | H30: =IF(G30>0,G30*1000/$G$21,"-") -> -
A31: R1 value | C31: 0.62 | G31: Operational
A33: Waste Disposal & Recovery | B33: Unit | C33: Q1 | D33: Q2 | E33: Q3 | F33: Q4 | G33: Year Total | H33: % inputs
A34: APC Residues - produced | B34: tonnes | C34: 2140.1 | D34: 1797.62 | E34: 2220.24 | F34: 2354.84 | G34: =SUM(C34:F34) -> 8512.8 | H34: =IF(G34>0,G34/$G$21,"-") -> 0.02267461837
A35: IBA - produced | C35: 19527 | D35: 17040.188 | E35: 21208.24 | F35: 20251.9 | G35: 78027.328 | H35: 0.2078328969
A36: Metals recycling | C36: 1224.92 | D36: 1106.58 | E36: 1530.41 | F36: 1165.3 | G36: =SUM(C36:F36) -> 5027.21 | H36: 0.01339043185
A37: Interceptor waste | C37: 0 | D37: 93.94 | E37: 0 | F37: 0 | G37: =SUM(C37:F37) -> 93.94 | H37: 0.0002502177486
A38: Wooden packaging | C38: 0 | D38: 43.02 | E38: 55.26 | F38: 31.86 | G38: 130.14 | H38: 0.0003466397466
A39: Slag | C39: 0 | D39: 183.32 | E39: 0 | F39: 0 | G39: 183.32 | H39: 0.0004882895217
A41: Raw Material Usage | B41: Unit | C41: Q1 | D41: Q2 | E41: Q3 | F41: Q4 | G41: Year Total | H41: kg or Ltr /te
A42: Mains Water | B42: m3 | C42: 40713 | D42: 36179 | E42: 41667 | F42: 41513 | G42: =SUM(C42:F42) -> 160072 | H42: =IF(G42>0,G42*1000/$G$21,"-") -> 426.3663556
A43: Other Water | B43: m3 | C43: 696 | D43: 0 | E43: 1874 | F43: 449 | G43: 3019 | H43: =IF(G43>0,G43*1000/$G$21,"-") -> 8.041381551
A44: Ammonia | B44: kgs | C44: 78600 | D44: 73400 | E44: 100900 | F44: 96700 | G44: 349600 | H44: =IF(G44>0,G44/$G$21,"-") -> 0.9311914509
A45: Urea | B45: kgs | G45: =SUM(C45:F45) -> 0 | H45: -
A46: Activated Carbon | B46: kgs | C46: 25000 | D46: 27900 | E46: 35800 | F46: 32100 | G46: 120800 | H46: 0.3217618057
A47: Lime / hydrated lime | B47: kgs | C47: 502000 | D47: 479000 | E47: 592000 | F47: 576000 | G47: 2149000 | H47: 5.724057289
A48: Fuel oil | B48: ltrs | C48: 432593 | D48: 288809 | E48: 226125 | F48: 289823 | G48: 1237350 | H48: 3.295794456
A49: Gas | B49: cf | G49: 0
A50: Other | C50: 0 | D50: 0 | E50: 0 | F50: 0 | G50: 0
A52: Summary | B52: Line/Unit | C52: Q1 | D52: Q2 | E52: Q3 | F52: Q4 | G52: Year Total | J52: Hrs in year
A53: Availability of waste combustion by line, hrs | B53: 1 | C53: 2053 | D53: 1628 | E53: 2124 | F53: 2110 | G53: =SUM(C53:F53) -> 7915 | H53: =G53/J53 -> 0.9035388128 | J53: 8760
B54: 2 | C54: 1939 | D54: 1762 | E54: 2203 | F54: 2185 | G54: =SUM(C54:F54) -> 8089 | H54: =G54/$J$53 -> 0.9234018265
B55: 3 | G55: 0 | H55: =G55/$J$53 -> 0
B56: 4 | G56: 0 | H56: 0
B57: 5 | G57: =SUM(C57:F57) -> 0 | H57: 0
A58: Overall Availability, mean avg. of all lines, hrs | C58: =AVERAGE(C53:C54) -> 1996 | D58: =AVERAGE(D53:D54) -> 1695 | E58: =AVERAGE(E53:E54) -> 2163.5 | F58: =AVERAGE(F53:F54) -> 2147.5 | G58: =AVERAGE(G53:G54) -> 8002 | H58: =G58/$J$53 -> 0.9134703196
A59: Hours of turbine operations, hrs | B59: 1 | C59: 2087 | D59: 1865 | E59: 2208 | F59: 2203 | G59: =SUM(C59:F59) -> 8363 | H59: 0.9546803653
A60: Hours of turbine operations, hrs | B60: 2 | G60: 0 | H60: x %
A61: Hours of heat / steam export | G61: 0 | H61: =IF(B61>0,G60/J53,"n/a") -> n/a
A62: Net Calorific Value of waste | B62: MJ/kg | H62: -
A63: Abnormal Events | B63: qty. | G63: 0 | H63: =IF(G63>0,"yes","no") -> no
A64: Abnormal operation | B64: hours | G64: =SUM(C64:F64) -> 0 | H64: =+(G64)/J53 -> 0
A65: Permit Breaches | B65: qty. | G65: 0 | H65: =IF(G65>0,"yes","no") -> no

Sheet Perf. Form 1
A1: =+'Cover Page'!C39 -> 2021 | B1: Annual Reporting Performance Form 1
A3: =+'Cover Page'!B31 -> Permit EPR/WP3239SJ | F3: Operator: | G3: Veolia ES Birmingham Limited
A4: Facility: | B4: =+'Cover Page'!B33:I33 -> Tyseley Energy from Waste Plant | F4: Form: | G4: Performance 1
A6: Reporting Period from: | D6: 2021-01-01 | F6: to: | G6: 2021-12-31
A8: =+A1 -> 2021 | B8: Annual Reporting of Waste Disposal and Recovery
A9: Waste Description | C9: Disposal Route(s) | E9: Disposal Tonnes | G9: Recovery Tonnes | I9: % / tonne of waste incinerated
A10: 1) Hazardous Wastes
A11: APC Residues | C11: D05 / D09 | E11: ='Operational Data'!G34 -> 8512.8 | I11: =IF((E11+G11)>0,(E11+G11)/'Operational Data'!$G$21, "-") -> 0.02267461837
A12: IBA | I12: =IF((E12+G12)>0,(E12+G12)/'Operational Data'!$G$21, "-") -> -
A13: Interceptor waste | C13: D09 | E13: ='Operational Data'!G37 -> 93.94 | I13: =IF((E13+G13)>0,(E13+G13)/'Operational Data'!$G$21, "-") -> 0.0002502177486
A14: Slag | C14: D10 | E14: ='Operational Data'!G39 -> 183.32 | I14: =IF((E14+G14)>0,(E14+G14)/'Operational Data'!$G$21, "-") -> 0.0004882895217
A15: Total Hazardous Waste | E15: =SUM(E11:F14) -> 8790.06 | G15: =SUM(G11:H14) -> 0 | I15: =IF((E15+G15)>0,(E15+G15)/'Operational Data'!$G$21, "-") -> 0.02341312564
A17: 2) Non-Hazardous Wastes
A18: IBA | C18: R11 | G18: ='Operational Data'!G35 -> 78027.328 | I18: =IF((E18+G18)>0,(E18+G18)/'Operational Data'!$G$21, "-") -> 0.2078328969
A19: Ferrous Metal | C19: R04 | G19: ='Operational Data'!G36 -> 5027.21 | I19: =IF((E19+G19)>0,(E19+G19)/'Operational Data'!$G$21, "-") -> 0.01339043185
A20: Wooden packaging | C20: R03/R05 | G20: ='Operational Data'!G38 -> 130.14 | I20: =IF((E20+G20)>0,(E20+G20)/'Operational Data'!$G$21, "-") -> 0.0003466397466
I21: =IF((E21+G21)>0,(E21+G21)/'Operational Data'!$G$21, "-") -> -
I22: =IF((E22+G22)>0,(E22+G22)/'Operational Data'!$G$21, "-") -> -
A23: Total Non-Hazardous Waste | E23: =SUM(E18:F22) -> 0 | G23: =SUM(G18:H22) -> 83184.678 | I23: =IF((E23+G23)>0,(E23+G23)/'Operational Data'!$G$21, "-") -> 0.2215699685
A24: TOTAL WASTE | E24: =+E23+E15 -> 8790.06 | G24: =+G23+G15 -> 83184.678 | I24: =IF((E24+G24)>0,(E24+G24)/'Operational Data'!$G$21, "-") -> 0.2449830942
A26: Operator’s comments :
A31: =+A1 -> 2021 | B31: Annual Reporting of Water and Other Raw Material Usage
A32: Raw Material | E32: Usage | G32: Unit | H32: Specific Usage | J32: Unit
A33: Mains Water | E33: =+'Operational Data'!G42 -> 160072 | G33: m3 | H33: =IF(E33>0,E33/'Operational Data'!$G$21,"-") -> 0.4263663556 | J33: m3/te
A34: Total Water | E34: =+'Operational Data'!G43+'Operational Data'!G42 -> 163091 | G34: m3 | H34: =IF(E34>0,E34/'Operational Data'!$G$21,"-") -> 0.4344077372 | J34: m3/te
A35: Ammonia | E35: =+'Operational Data'!G44 -> 349600 | G35: kg | H35: =IF(E35>0,E35/'Operational Data'!$G$21,"-") -> 0.9311914509 | J35: kg/te
A36: Activated Carbon | E36: =+'Operational Data'!G46 -> 120800 | G36: kg | H36: =IF(E36>0,E36/'Operational Data'!$G$21,"-") -> 0.3217618057 | J36: kg/te
A37: Lime / hydrated lime | E37: =+'Operational Data'!G47 -> 2149000 | G37: kg | H37: =IF(E37>0,E37/'Operational Data'!$G$21,"-") -> 5.724057289 | J37: kg/te
A39: Operator’s comments :
A43: =+A31 -> 2021 | B43: Annual Reporting of other performance indicators
A44: Parameter | C44: Results by Line
C45: A1 | D45: A2 | E45: A3 | F45: A4 | G45: A5 | I45: Turbine 1 | J45: Turbine 2
A46: Operating hours for the year, hours | C46: ='Operational Data'!G53 -> 7915 | D46: ='Operational Data'!G54 -> 8089 | I46: ='Operational Data'!G59 -> 8363
A47: Number of periods of abnormal operation, qty.
A48: Cumulative hours of abnormal operation for this year, hours
A50: Operator’s comments :
A54: Signed: | B54: Mark Gilsenan | G54: Date: | H54: 2022-01-28

Sheet Energy Form 1
A1: =+'Cover Page'!C39 -> 2021 | B1: Annual Reporting of Energy Usage/Export
A3: =+'Cover Page'!B31 -> Permit EPR/WP3239SJ | F3: Operator: | G3: Veolia ES Birmingham Limited
A5: Facility: | B5: =+'Cover Page'!B33:I33 -> Tyseley Energy from Waste Plant | F5: Form: | G5: Energy 1
A7: Reporting Period from: | D7: =+'Perf. Form 1'!D6:E6 -> 2021-01-01 | F7: to: | G7: =+'Perf. Form 1'!G6:H6 -> 2021-12-31
A9: Energy Source | D9: Energy Usage | F9: Unit | G9: Specific Usage (KWh/tonne incinerated
A10: Electricity Produced | D10: =+'Operational Data'!G24 -> 210666 | F10: MWh | G10: =+'Operational Data'!H24 -> 561.1280841
A11: Electricity Imported | D11: =+'Operational Data'!G27 -> 718.2 | F11: MWh | G11: =+'Operational Data'!H27 -> 1.912991133
A12: Electricity Exported | D12: =+'Operational Data'!G25 -> 184156 | F12: MWh | G12: =+'Operational Data'!H25 -> 490.5162839
A13: Gas Oil | D13: ='Operational Data'!G48 -> 1237350 | F13: ltrs | G13: ='Operational Data'!H48 -> 3.295794456
A14: Steam/hot water exported | D14: =+'Operational Data'!G30 -> 0 | F14: GWh | G14: =+'Operational Data'!H30 -> -
A18: Operator’s comments :
A29: Signed: | B29: Mark Gilsenan | G29: Date: | H29: 2022-01-28

Sheet Permit Compliance
A1: =+'Cover Page'!$B$29 -> Annual Performance Report 2021 | E1: =+'Cover Page'!$B$33 -> Tyseley Energy from Waste Plant
A3: Summary of Permit Compliance
A5: Compliance with permit limits for continuously monitored pollutants
A7: The plant met its emission limits as shown in the table below:
A8: Substance | C8: Percentage time compliant during operation | L8: Notes:
C9: Half-hourly limit | F9: Daily limit | L9: Report to 2 decimal places, i.e. xx.xx% Please provide a brief summary of each notification or non-compliance in the table (rather than just referring to notifications that were sent to the Regulator).
A10: Particulates | C10: 1 | F10: 1
A11: Oxides of nitrogen | C11: 1 | F11: 1
A12: Sulphur dioxide | C12: 1 | F12: 1
A13: Carbon monoxide | C13: 100% of 95% of 10-min averages | F13: 1
A14: Total organic carbon | C14: 1 | F14: 1
A15: Hydrogen chloride | C15: 1 | F15: 1
A16: Hydrogen fluoride | C16: 1 | F16: 1
A18: Summary of any notifications or non-compliances under the permit
A19: Date | B19: Summary of notification or non-compliance [including Line/Reference] | E19: Reason | H19: Measures taken to prevent reoccurrence
A22: Summary of any complaints received and actions to taken to resolve them.
A23: Date | B23: Summary of complaint [including Line/Reference] | E23: Reason * | H23: Measures taken to prevent reoccurrence
E29: * including whether substantiated by the operator or the EA

Sheet Improvements
A1: =+'Cover Page'!$B$29 -> Annual Performance Report 2021 | E1: =+'Cover Page'!$B$33 -> Tyseley Energy from Waste Plant
A3: Summary of Plant Improvements
A5: Summary of any efficiency improvements that have been completed within the year.
A6: n/a
A16: Summary of any permit improvement conditions that have been completed within the year and the resulting environmental benefits.
A17: n/a
A27: Summary of any changes to the plant or operating techniques which required a variation to the permit and a summary of the resulting environmental impact.
A28: n/a
A38: Summary of any other improvements made to the plant or planned to be made and a summary of the resulting environmental benefits.
A39: n/a

Sheet Public Liasion
A1: =+'Cover Page'!$B$29 -> Annual Performance Report 2021 | E1: =+'Cover Page'!$B$33 -> Tyseley Energy from Waste Plant
A3: Details of Public & Stakeholder Liaison
A5: Summary of events held during the reporting year.
A6: Date | C6: Description
A7: Bi-monthly | C7: Meetings with Birmingham City Council (remotely due to COVID-19)
A16: List of events planned for next year
A17: Date | C17: Description
A18: Bi-monthly | C18: Meetings with Birmingham City Council (remotely due to COVID-19)
A29: If you wish to be involved in the public liaison programme, please contact 0203 567 3751

Sheet Residue Quality
A1: =+'Cover Page'!$B$29 -> Annual Performance Report 2021 | E1: =+'Cover Page'!$B$33 -> Tyseley Energy from Waste Plant
A3: Residue Quality Monitoring Requirements
A5: Summary of monitoring undertaken and compliance
A6: As per permit requirements
A13: Commentary on any specific events
A14: Date & Event | C14: Description
A27: Residue Quality Monitoring Results
A28: Parameter (unit) | C28: Limit | D28: Normal Operation
D29: Bottom ash | I29: APC Residues
D30: Q1 | E30: Q2 | F30: Q3 | G30: Q4 | H30: Average
A31: Loss on Ignition (average %) | C31: <5% | D31: 3.25 | E31: 1.76 | F31: 3.89 | G31: 3.46 | H31: =AVERAGE(D31:G31) -> 3.09
A32: Total Organic Carbon (average %) | C32: <3%
A33: No. of Assessments Undertaken | C33: ---
A34: No. of Hazardous Results | C34: --- | D34: 0
A36: Comments :

Sheet Water
A1: =+'Cover Page'!$B$29 -> Annual Performance Report 2021 | E1: =+'Cover Page'!$B$33 -> Tyseley Energy from Waste Plant
A3: Emissions to Water
A5: Summary of monitoring undertaken and compliance
A6: As per Severn Trent Consent to discharge of trade effluent to public foul sewer
A13: Commentary on any specific events
A14: Date & Event | C14: Description
A20: Emissions to Water / Sewer
A21: Parameter | D21: Monitoring Frequency | G21: Limit | H21: Target | I21: Max. | J21: Average
A22: Outlet 1
A23: SULPHATE | D23: Periodic | G23: 1500 | I23: 681 | J23: 681
A24: CHROMIUM (Cr) | D24: Periodic | G24: 5 | I24: 0.042 | J24: 0.042
A25: COPPER (Cu) | D25: Periodic | G25: 5 | I25: 0.071 | J25: 0.071
A26: LEAD (Pb) | D26: Periodic | G26: 5 | I26: 0.19 | J26: 0.19
A27: NICKEL (Ni) | D27: Periodic | G27: 5 | I27: 0.022 | J27: 0.022
A28: ZINC (Zn) | D28: Periodic | G28: 10 | I28: 0.47 | J28: 0.47
A29: PH | D29: Periodic | G29: 12.5 | I29: 12 | J29: 12
A30: Outlet 2
A31: CHROMIUM (Cr) | D31: Periodic | G31: 5
A32: COPPER (Cu) | D32: Periodic | G32: 5
A33: LEAD (Pb) | D33: Periodic | G33: 5
A34: NICKEL (Ni) | D34: Periodic | G34: 5
A35: ZINC (Zn) | D35: Periodic | G35: 10
A36: PH | D36: Periodic | G36: 12.5

Sheet Air (periodic)
A1: =+'Cover Page'!$B$29 -> Annual Performance Report 2021 | E1: =+'Cover Page'!$B$33 -> Tyseley Energy from Waste Plant
A3: Emissions to Air (periodically monitored)
A5: Summary of monitoring undertaken, standards used and compliance | N5: Notes:
A6: As per permit requirements | N6: Template may require adjustment for any bespoke monitoring requirements of permit.
A9: Results of emissions to air that are periodically monitored
A10: Substance | C10: Ref. Period | D10: Emission Limit Value | J10: Average | N10: User to add additional tables as necessary, depending on whether quarterly or bi-annual reporting is required for the compliance year
F11: A1 (Q1) | G11: A1 (Q3) | H11: A2 (Q1) | I11: A2 (Q3) | J11: A1 | K11: A2
A12: Hydrogen fluoride | C12: 1 hr | D12: 2 mg/m3 | F12: 0.05 | G12: 0.05 | H12: 0.05 | I12: 0.04 | J12: =AVERAGE(F12,G12) -> 0.05 | K12: =AVERAGE(H12,I12) -> 0.045
A13: Cd and Th and their compounds | C13: 6-8hrs | D13: 0.05 mg/m3 | F13: 0.00078 | G13: 0.00069 | H13: 0.00081 | I13: 0.00072 | J13: 0.000735 | K13: 0.000765
A14: Hg and its compounds | C14: 6-8hrs | D14: 0.05 mg/m3 | F14: 0.00077 | G14: 0.00074 | H14: 0.0028 | I14: 0.0011 | J14: 0.000755 | K14: 0.00195
A15: Sb, As, Pb, Cr, Co, Cu, Mn, Ni, V and their compounds | C15: 6-8hrs | D15: 0.5 mg/m3 | F15: 0.023 | G15: 0.022 | H15: 0.042 | I15: 0.024 | J15: 0.0225 | K15: 0.033
A16: Dioxins & Furans (I-TEQ) | C16: 6-8hrs | D16: 0.1 ng/m3 | F16: 0.0071 | G16: 0.0014 | H16: 0.02 | I16: 0.012 | J16: 0.00425 | K16: 0.016
A17: PCBs (WHO-TEQ Humans / Mammals) | C17: 6-8hrs | D17: None set ng/m3 | F17: 0.0011 | G17: 0.0002 | H17: 0.003 | I17: 0.0011 | J17: 0.00065 | K17: 0.00205
A18: PCBs (WHO-TEQ Fish) | C18: 6-8hrs | D18: None set ng/m3 | F18: 5.8e-05 | G18: 1.2e-05 | H18: 0.0015 | I18: 7.3e-05 | J18: 3.5e-05 | K18: 0.0007865
A19: PCBs (WHO-TEQ Birds) | C19: 6-8hrs | D19: None set ng/m3 | F19: 0.003 | G19: 0.00097 | H19: 0.0061 | I19: 0.0098 | J19: 0.001985 | K19: 0.00795
A20: Dioxins & Furans (WHO-TEQ Humans / Mammals) | C20: 6-8hrs | D20: None set ng/m3 | F20: 0.0079 | G20: 0.0016 | H20: 0.022 | I20: 0.013 | J20: 0.00475 | K20: 0.0175
A21: Dioxins & Furans (WHO-TEQ Fish) | C21: 6-8hrs | D21: None set ng/m3 | F21: 0.0074 | G21: 0.0015 | H21: 0.021 | I21: 0.012 | J21: 0.00445 | K21: 0.0165
A22: Dioxins & Furans (WHO-TEQ Birds) | C22: 6-8hrs | D22: None set ng/m3 | F22: 0.012 | G22: 0.0025 | H22: 0.031 | I22: 0.017 | J22: 0.00725 | K22: 0.024
A23: Nitrous Oxide (N2O) | C23: 1 hr | D23: None set ng/m4 | F23: 0.24 | G23: 0.24 | H23: 0.26 | I23: 0.24 | J23: 0.24 | K23: 0.25
A24: PAH Total | C24: 6-8hrs | D24: None set ng/m5 | F24: 0.15 | G24: 0.17 | H24: 0.15 | I24: 0.16 | J24: 0.16 | K24: 0.155
A25: Anthanthrene | C25: 6-8hrs | D25: None set µg/m3 | F25: 0.0021 | G25: 0.002 | H25: 0.0021 | I25: 0.0019 | J25: 0.00205 | K25: 0.002
A26: Benzo(a)anthracene | C26: 6-8hrs | D26: None set µg/m3 | F26: 0.0021 | G26: 0.0027 | H26: 0.0021 | I26: 0.0023 | J26: 0.0024 | K26: 0.0022
A27: Benzo(a)pyrene | C27: 6-8hrs | D27: None set µg/m3 | F27: 0.0021 | G27: 0.002 | H27: 0.0021 | I27: 0.0019 | J27: 0.00205 | K27: 0.002
A28: Benzo(b)fluoranthene | C28: 6-8hrs | D28: None set µg/m3 | F28: 0.0021 | G28: 0.002 | H28: 0.0021 | I28: 0.0019 | J28: 0.00205 | K28: 0.002
A29: Benzo(b)naptho(2,1-d) thiophene | C29: 6-8hrs | D29: None set µg/m3 | F29: 0.0021 | G29: 0.002 | H29: 0.0021 | I29: 0.0027 | J29: 0.00205 | K29: 0.0024
A30: Benzo(c)phenanthrene | C30: 6-8hrs | D30: None set µg/m3 | F30: 0.0021 | G30: 0.002 | H30: 0.0021 | I30: 0.0019 | J30: 0.00205 | K30: 0.002
A31: Benzo(ghi)perylene | C31: 6-8hrs | D31: None set µg/m3 | F31: 0.0021 | G31: 0.0027 | H31: 0.0021 | I31: 0.0047 | J31: 0.0024 | K31: 0.0034
A32: Benzo(k)fluoranthene | C32: 6-8hrs | D32: None set µg/m3 | F32: 0.0021 | G32: 0.002 | H32: 0.0021 | I32: 0.0019 | J32: 0.00205 | K32: 0.002
A33: Cholanthrene | C33: 6-8hrs | D33: None set µg/m3 | F33: 0.0021 | G33: 0.002 | H33: 0.0021 | I33: 0.0019 | J33: 0.00205 | K33: 0.002
A34: Chrysene | C34: 6-8hrs | D34: None set µg/m3 | F34: 0.0021 | G34: 0.0045 | H34: 0.0021 | I34: 0.0036 | J34: 0.0033 | K34: 0.00285
A35: Cyclopenta(cd)pyrene | C35: 6-8hrs | D35: None set µg/m3 | F35: 0.0021 | G35: 0.002 | H35: 0.0021 | I35: 0.0019 | J35: 0.00205 | K35: 0.002
A36: Dibenzo(ai)pyrene | C36: 6-8hrs | D36: None set µg/m3 | F36: 0.0021 | G36: 0.002 | H36: 0.0021 | I36: 0.0019 | J36: 0.00205 | K36: 0.002
A37: Dibenzo(ah)anthracene | C37: 6-8hrs | D37: None set µg/m3 | F37: 0.0021 | G37: 0.002 | H37: 0.0021 | I37: 0.0019 | J37: 0.00205 | K37: 0.002
A38: Fluoranthene | C38: 6-8hrs | D38: None set µg/m3 | F38: 0.021 | G38: 0.055 | H38: 0.019 | I38: 0.04 | J38: 0.038 | K38: 0.0295
A39: Indeno(123-cd) pyrene | C39: 6-8hrs | D39: None set µg/m3 | F39: 0.0021 | G39: 0.002 | H39: 0.0021 | I39: 0.0019 | J39: 0.00205 | K39: 0.002
A40: Naphthalene | C40: 6-8hrs | D40: None set µg/m3 | F40: 0.099 | G40: 0.087 | H40: 0.1 | I40: 0.088 | J40: 0.093 | K40: 0.094
A41: Comments :

Sheet Air (CEMS)
A1: =+'Cover Page'!$B$29 -> Annual Performance Report 2021 | I1: =+'Cover Page'!$B$33 -> Tyseley Energy from Waste Plant
A3: Emissions to Air (continuously monitored)
P4: Notes:
A5: Summary of monitoring undertaken, standards used and compliance | P5: Template may require adjustment for any bespoke monitoring requirements of permit
A6: MCERT CEM System | P6: Report to 2 decimal places, i.e. xx.xx%
A11: Results of emissions to air that are continuously monitored (maximum and average values for each line)
A12: Substance | B12: Reference Period | C12: Emission Limit Value | D12: A1 | F12: A2 | H12: A3 | J12: A4 | L12: A5
D13: Max. | E13: Avg. | F13: Max. | G13: Avg. | H13: Max. | I13: Avg. | J13: Max. | K13: Avg. | L13: Max. | M13: Avg.
A14: Oxides of nitrogen | B14: Daily mean | C14: 200 mg/m3 | D14: =NOx!O19 -> 194.98 | E14: =NOx!N19 -> 159.2175 | F14: =NOx!O34 -> 195.5 | G14: =NOx!N34 -> 169.6583333
B15: ½ hourly mean | C15: 400 mg/m3 | D15: =NOx!M19 -> 260.22 | E15: =NOx!L19 -> 159.14 | F15: =NOx!M34 -> 306.89 | G15: =NOx!L34 -> 169.3825
A16: Particulates | B16: Daily mean | C16: 10 mg/m3 | D16: =Particulates!O19 -> 3.39 | E16: =Particulates!N19 -> 1.086666667 | F16: =Particulates!O34 -> 3.49 | G16: =Particulates!N34 -> 0.3208333333
B17: ½ hourly mean | C17: 30 mg/m3 | D17: =Particulates!M19 -> 10.95 | E17: =Particulates!L19 -> 1.0925 | F17: =Particulates!M34 -> 14.72 | G17: =Particulates!L34 -> 0.3316666667
A18: Total Organic Carbon | B18: Daily mean | C18: 10 mg/m3 | D18: =TOC!O19 -> 1.58 | E18: =TOC!N19 -> 0.7233333333 | F18: =TOC!O34 -> 2.54 | G18: =TOC!N34 -> 1.02
B19: ½ hourly mean | C19: 20 mg/m3 | D19: =TOC!M19 -> 5.58 | E19: =TOC!L19 -> 0.8091666667 | F19: =TOC!M34 -> 14.05 | G19: =TOC!L34 -> 1.011666667
A20: Hydrogen chloride | B20: Daily mean | C20: 10 mg/m3 | D20: =HCl!O19 -> 8.66 | E20: =HCl!N19 -> 6.611666667 | F20: =HCl!O34 -> 9.09 | G20: =HCl!N34 -> 6.575833333
B21: ½ hourly mean | C21: 60 mg/m3 | D21: =HCl!M19 -> 52.07 | E21: =HCl!L19 -> 6.648333333 | F21: =HCl!M34 -> 50.39 | G21: =HCl!L34 -> 6.599166667
A22: Sulphur dioxide | B22: Daily mean | C22: 50 mg/m3 | D22: ='SO2'!O19 -> 28.73 | E22: ='SO2'!N19 -> 8.529166667 | F22: ='SO2'!O34 -> 38.89 | G22: ='SO2'!N34 -> 15.07416667
B23: ½ hourly mean | C23: 200 mg/m3 | D23: ='SO2'!M19 -> 157.67 | E23: ='SO2'!L19 -> 8.568333333 | F23: ='SO2'!M34 -> 188.13 | G23: ='SO2'!L34 -> 15.235
A24: Carbon monoxide | B24: Daily mean | C24: 50 mg/m3 | D24: ='CO 95% 10 min'!Q19 -> 27.26 | E24: ='CO 95% 10 min'!P19 -> 10.52083333 | F24: ='CO 95% 10 min'!Q34 -> 32.93 | G24: ='CO 95% 10 min'!P34 -> 12.40083333
B25: 95%ile 10-min avg * | C25: 150 mg/m3 * | D25: ='CO 95% 10 min'!M19 -> 10.525 | E25: ='CO 95% 10 min'!N19 -> 10.51166667 | F25: ='CO 95% 10 min'!M34 -> 12.38333333 | G25: ='CO 95% 10 min'!N34 -> 12.3725
A26: * = delete or amend as appropriate
A27: Comments :

Sheet HCl
A1: =+'Cover Page'!$B$29 -> Annual Performance Report 2021 | E1: =+'Cover Page'!$B$33 -> Tyseley Energy from Waste Plant
A3: Monitoring of Hydrogen Chloride emissions | D3: Whole Installation | J3: =+A3 -> Monitoring of Hydrogen Chloride emissions | N3: Per Combustion Line | Q3: Notes:
Q4: User to add logic to complete Whole installation, Table A5:G18. From the data in Per Combustion Line, Table J6:O79, subject to No. of lines installed
A5: mg/Nm3 | B5: 1/2 Hourly Reference Periods | E5: Daily Reference Periods
A6: =+'Cover Page'!C39 -> 2021 | B6: 1/2 hourly HCl ELV | C6: Monthly 1/2 hourly mean | D6: Highest 1/2 hourly maximum | E6: Daily HCl ELV | F6: Monthly daily mean | G6: Highest daily maximum | J6: =+A6 -> 2021 | K6: mg/Nm3 | L6: Monthly 1/2 hourly mean | M6: Monthly 1/2 hourly maximum | N6: Monthly daily mean | O6: Monthly daily maximum
A7: Jan | B7: 60 | C7: =AVERAGE(L7,L22) -> 6.83 | D7: =MAX(M7,M22) -> 25.74 | E7: 10 | F7: =AVERAGE(N7,N22) -> 6.845 | G7: =MAX(O7,O22) -> 8.06 | J7: A1 | K7: Jan | L7: 6.99 | M7: 25.74 | N7: 6.99 | O7: 8.06
A8: Feb | B8: 60 | C8: =AVERAGE(L8,L23) -> 7.115 | D8: =MAX(M8,M23) -> 35.08 | E8: 10 | F8: =AVERAGE(N8,N23) -> 7.105 | G8: =MAX(O8,O23) -> 8.85 | K8: Feb | L8: 6.76 | M8: 27.4 | N8: 6.73 | O8: 8.15
A9: Mar | B9: 60 | C9: 6.415 | D9: =MAX(M9,M24) -> 52.07 | E9: 10 | F9: 6.43 | G9: 7.97 | K9: Mar | L9: 6.57 | M9: 52.07 | N9: 6.57 | O9: 7.97 | Q9: Whole Installation table A5:G18:
A10: Apr | B10: 60 | C10: 6.67 | D10: 38.77 | E10: 10 | F10: 6.665 | G10: 8.55 | K10: Apr | L10: 6.89 | M10: 34.51 | N10: 6.88 | O10: 8.55 | Q10: Mean: for 1/2 hourly and daily periods calculate mean of values across all operational combustion lines for the month
A11: May | B11: 60 | C11: 5.98 | D11: 40.56 | E11: 10 | F11: 5.93 | G11: 7.88 | K11: May | L11: 6 | M11: 40.56 | N11: 6 | O11: 7.88
A12: Jun | B12: 60 | C12: 6.71 | D12: 39.89 | E12: 10 | F12: 6.59 | G12: 7.88 | K12: Jun | L12: 6.69 | M12: 19.8 | N12: 6.65 | O12: 7.38
A13: Jul | B13: 60 | C13: 6.765 | D13: =MAX(M13,M28) -> 37.29 | E13: 10 | F13: =AVERAGE(N13,N28) -> 6.74 | G13: 9.09 | K13: Jul | L13: 6.62 | M13: 26.14 | N13: 6.57 | O13: 7.83 | Q13: Maximum: for 1/2 hourly and daily periods use the highest value across all operational combustion lines for the month
A14: Aug | B14: 60 | C14: 5.795 | D14: 34.18 | E14: 10 | F14: 5.81 | G14: 7.81 | K14: Aug | L14: 6.13 | M14: 34.18 | N14: 6.16 | O14: 7.81
A15: Sep | B15: 60 | C15: 6.805 | D15: 35.75 | E15: 10 | F15: 6.8 | G15: 8.63 | K15: Sep | L15: 6.56 | M15: 29.38 | N15: 6.55 | O15: 7.95
A16: Oct | B16: 60 | C16: 6.23 | D16: 49.33 | E16: 10 | F16: 6.23 | G16: 8.06 | K16: Oct | L16: 6.12 | M16: 34.76 | N16: 6.12 | O16: 6.81
A17: Nov | B17: 60 | C17: 7.305 | D17: 50.1 | E17: 10 | F17: 7.135 | G17: 8.25 | K17: Nov | L17: 7.47 | M17: 50.1 | N17: 7.12 | O17: 8.25
A18: Dec | B18: 60 | C18: 6.865 | D18: 50.39 | E18: 10 | F18: 6.845 | G18: 8.66 | K18: Dec | L18: 6.98 | M18: 29.61 | N18: 7 | O18: 8.66
K19: Annual | L19: =AVERAGE(L7:L18) -> 6.648333333 | M19: =MAX(M7:M18) -> 52.07 | N19: =AVERAGE(N7:N18) -> 6.611666667 | O19: =MAX(O7:O18) -> 8.66
J21: =+A6 -> 2021 | K21: mg/Nm3 | L21: Monthly 1/2 hourly mean | M21: Monthly 1/2 hourly maximum | N21: Monthly daily mean | O21: Monthly daily maximum
J22: A2 | K22: Jan | L22: 6.67 | M22: 20.15 | N22: 6.7 | O22: 7.61
K23: Feb | L23: 7.47 | M23: 35.08 | N23: 7.48 | O23: 8.85
K24: Mar | L24: 6.26 | M24: 35.84 | N24: 6.29 | O24: 7.26
K25: Apr | L25: 6.45 | M25: 38.77 | N25: 6.45 | O25: 7.24
K26: May | L26: 5.96 | M26: 36.37 | N26: 5.86 | O26: 7.33
K27: Jun | L27: 6.73 | M27: 39.89 | N27: 6.53 | O27: 7.88
K28: Jul | L28: 6.91 | M28: 37.29 | N28: 6.91 | O28: 9.09
K29: Aug | L29: 5.46 | M29: 28.94 | N29: 5.46 | O29: 7.58
K30: Sep | L30: 7.05 | M30: 35.75 | N30: 7.05 | O30: 8.63
K31: Oct | L31: 6.34 | M31: 49.33 | N31: 6.34 | O31: 8.06
K32: Nov | L32: 7.14 | M32: 39.45 | N32: 7.15 | O32: 8.24
K33: Dec | L33: 6.75 | M33: 50.39 | N33: 6.69 | O33: 8.52
K34: Annual | L34: =AVERAGE(L22:L33) -> 6.599166667 | M34: =MAX(M22:M33) -> 50.39 | N34: =AVERAGE(N22:N33) -> 6.575833333 | O34: =MAX(O22:O33) -> 9.09
J36: =+A6 -> 2021 | K36: mg/Nm3 | L36: Monthly 1/2 hourly mean | M36: Monthly 1/2 hourly maximum | N36: Monthly daily mean | O36: Monthly daily maximum
J37: A3 | K37: Jan
K38: Feb
K39: Mar
K40: Apr
K41: May
K42: Jun
K43: Jul
K44: Aug
K45: Sep
K46: Oct
K47: Nov
A48: Comments : | K48: Dec
K49: Annual | L49: =AVERAGE(L37:L48) ->  | M49: =MAX(M37:M48) -> 0 | N49: =AVERAGE(N37:N48) ->  | O49: =MAX(O37:O48) -> 0
J51: =+A6 -> 2021 | K51: mg/Nm3 | L51: Monthly 1/2 hourly mean | M51: Monthly 1/2 hourly maximum | N51: Monthly daily mean | O51: Monthly daily maximum
J52: A4 | K52: Jan
K53: Feb
K54: Mar
K55: Apr
K56: May
K57: Jun
K58: Jul
K59: Aug
K60: Sep
K61: Oct
K62: Nov
K63: Dec
K64: Annual | L64: =AVERAGE(L52:L63) ->  | M64: =MAX(M52:M63) -> 0 | N64: =AVERAGE(N52:N63) ->  | O64: =MAX(O52:O63) -> 0
J66: =+A6 -> 2021 | K66: mg/Nm3 | L66: Monthly 1/2 hourly mean | M66: Monthly 1/2 hourly maximum | N66: Monthly daily mean | O66: Monthly daily maximum
J67: A5 | K67: Jan
K68: Feb
K69: Mar
K70: Apr
K71: May
K72: Jun
K73: Jul
K74: Aug
K75: Sep
K76: Oct
K77: Nov
K78: Dec
K79: Annual | L79: =AVERAGE(L67:L78) ->  | M79: =MAX(M67:M78) -> 0 | N79: =AVERAGE(N67:N78) ->  | O79: =MAX(O67:O78) -> 0

Sheet SO2
A1: =+'Cover Page'!$B$29 -> Annual Performance Report 2021 | E1: =+'Cover Page'!$B$33 -> Tyseley Energy from Waste Plant
A3: Monitoring of Sulphur dioxide emissions | D3: Whole Installation | J3: =+A3 -> Monitoring of Sulphur dioxide emissions | N3: Per Combustion Line | Q3: Notes:
Q4: User to add logic to complete Whole installation, Table A5:G18. From the data in Per Combustion Line, Table J6:O79, subject to No. of lines installed
A5: mg/Nm3 | B5: 1/2 Hourly Reference Periods | E5: Daily Reference Periods
A6: =+'Cover Page'!C39 -> 2021 | B6: 1/2 hourly SO2 ELV | C6: Monthly 1/2 hourly mean | D6: Highest 1/2 hourly maximum | E6: Daily SO2 ELV | F6: Monthly daily mean | G6: Highest daily maximum | J6: =+A6 -> 2021 | K6: mg/Nm3 | L6: Monthly 1/2 hourly mean | M6: Monthly 1/2 hourly maximum | N6: Monthly daily mean | O6: Monthly daily maximum
A7: Jan | B7: 200 | C7: =AVERAGE(L7,L22) -> 7.5 | D7: =MAX(M7,M22) -> 61.16 | E7: 50 | F7: =AVERAGE(N7,N22) -> 7.585 | G7: =MAX(O7,O22) -> 11.65 | J7: A1 | K7: Jan | L7: 5.86 | M7: 61.16 | N7: 5.86 | O7: 10.25
A8: Feb | B8: 200 | C8: =AVERAGE(L8,L23) -> 11.435 | D8: =MAX(M8,M23) -> 157.67 | E8: 50 | F8: =AVERAGE(N8,N23) -> 11.15 | G8: =MAX(O8,O23) -> 20.34 | K8: Feb | L8: 8.42 | M8: 157.67 | N8: 8.21 | O8: 12.24
A9: Mar | B9: 200 | C9: 9.145 | D9: 94.98 | E9: 50 | F9: 9.1 | G9: 15.44 | K9: Mar | L9: 7.1 | M9: 94.98 | N9: 7.09 | O9: 12.37 | Q9: Whole Installation table A5:G18:
A10: Apr | B10: 200 | C10: 9.605 | D10: 145.08 | E10: 50 | F10: 9.605 | G10: 15.14 | K10: Apr | L10: 7.39 | M10: 145.08 | N10: 7.39 | O10: 12.3 | Q10: Mean: for 1/2 hourly and daily periods calculate mean of values across all operational combustion lines for the month
A11: May | B11: 200 | C11: 9.535 | D11: 65.04 | E11: 50 | F11: =AVERAGE(N11,N26) -> 9.595 | G11: =MAX(O11,O26) -> 27.54 | K11: May | L11: 5.16 | M11: 65.04 | N11: 5.16 | O11: 10.74
A12: Jun | B12: 200 | C12: 16.18 | D12: 160.37 | E12: 50 | F12: 15.21 | G12: 31.22 | K12: Jun | L12: 9.09 | M12: 84.62 | N12: 8.97 | O12: 19.92
A13: Jul | B13: 200 | C13: 16.74 | D13: 120.94 | E13: 50 | F13: 16.675 | G13: 33.95 | K13: Jul | L13: 13.75 | M13: 81.88 | N13: 13.64 | O13: 28.73 | Q13: Maximum: for 1/2 hourly and daily periods use the highest value across all operational combustion lines for the month
A14: Aug | B14: 200 | C14: 14.545 | D14: 85.75 | E14: 50 | F14: 14.525 | G14: 38.89 | K14: Aug | L14: 11.39 | M14: 79.82 | N14: 11.36 | O14: 19.49
A15: Sep | B15: 200 | C15: 12.065 | D15: 83.79 | E15: 50 | F15: 12.07 | G15: 22.43 | K15: Sep | L15: 9.91 | M15: 83.79 | N15: 9.91 | O15: 18.25
A16: Oct | B16: 200 | C16: 10.395 | D16: 188.13 | E16: 50 | F16: 10.39 | G16: 17.92 | K16: Oct | L16: 7.87 | M16: 73.62 | N16: 7.87 | O16: 9.46
A17: Nov | B17: 200 | C17: 12.295 | D17: 145.54 | E17: 50 | F17: 12.375 | G17: 22.93 | K17: Nov | L17: 8.52 | M17: 74.8 | N17: 8.51 | O17: 12.8
A18: Dec | B18: 200 | C18: =AVERAGE(L18,L33) -> 13.38 | D18: 132.57 | E18: 50 | F18: 13.34 | G18: 26.93 | K18: Dec | L18: 8.36 | M18: 77.9 | N18: 8.38 | O18: 13.56
K19: Annual | L19: =AVERAGE(L7:L18) -> 8.568333333 | M19: =MAX(M7:M18) -> 157.67 | N19: =AVERAGE(N7:N18) -> 8.529166667 | O19: =MAX(O7:O18) -> 28.73
J21: =+A6 -> 2021 | K21: mg/Nm3 | L21: Monthly 1/2 hourly mean | M21: Monthly 1/2 hourly maximum | N21: Monthly daily mean | O21: Monthly daily maximum
J22: A2 | K22: Jan | L22: 9.14 | M22: 59.16 | N22: 9.31 | O22: 11.65
K23: Feb | L23: 14.45 | M23: 105.65 | N23: 14.09 | O23: 20.34
K24: Mar | L24: 11.19 | M24: 66.83 | N24: 11.11 | O24: 15.44
K25: Apr | L25: 11.82 | M25: 143.68 | N25: 11.82 | O25: 15.14
K26: May | L26: 13.91 | M26: 50.28 | N26: 14.03 | O26: 27.54
K27: Jun | L27: 23.27 | M27: 160.37 | N27: 21.45 | O27: 31.22
K28: Jul | L28: 19.73 | M28: 120.94 | N28: 19.71 | O28: 33.95
K29: Aug | L29: 17.7 | M29: 85.75 | N29: 17.69 | O29: 38.89
K30: Sep | L30: 14.22 | M30: 83.7 | N30: 14.23 | O30: 22.43
K31: Oct | L31: 12.92 | M31: 188.13 | N31: 12.91 | O31: 17.92
K32: Nov | L32: 16.07 | M32: 145.54 | N32: 16.24 | O32: 22.93
K33: Dec | L33: 18.4 | M33: 132.57 | N33: 18.3 | O33: 26.93
K34: Annual | L34: =AVERAGE(L22:L33) -> 15.235 | M34: =MAX(M22:M33) -> 188.13 | N34: =AVERAGE(N22:N33) -> 15.07416667 | O34: =MAX(O22:O33) -> 38.89
J36: =+A6 -> 2021 | K36: mg/Nm3 | L36: Monthly 1/2 hourly mean | M36: Monthly 1/2 hourly maximum | N36: Monthly daily mean | O36: Monthly daily maximum
J37: A3 | K37: Jan
K38: Feb
K39: Mar
K40: Apr
K41: May
K42: Jun
K43: Jul
K44: Aug
K45: Sep
K46: Oct
K47: Nov
A48: Comments : | K48: Dec
K49: Annual | L49: =AVERAGE(L37:L48) ->  | M49: =MAX(M37:M48) -> 0 | N49: =AVERAGE(N37:N48) ->  | O49: =MAX(O37:O48) -> 0
J51: =+A6 -> 2021 | K51: mg/Nm3 | L51: Monthly 1/2 hourly mean | M51: Monthly 1/2 hourly maximum | N51: Monthly daily mean | O51: Monthly daily maximum
J52: A4 | K52: Jan
K53: Feb
K54: Mar
K55: Apr
K56: May
K57: Jun
K58: Jul
K59: Aug
K60: Sep
K61: Oct
K62: Nov
K63: Dec
K64: Annual | L64: =AVERAGE(L52:L63) ->  | M64: =MAX(M52:M63) -> 0 | N64: =AVERAGE(N52:N63) ->  | O64: =MAX(O52:O63) -> 0
J66: =+A6 -> 2021 | K66: mg/Nm3 | L66: Monthly 1/2 hourly mean | M66: Monthly 1/2 hourly maximum | N66: Monthly daily mean | O66: Monthly daily maximum
J67: A5 | K67: Jan
K68: Feb
K69: Mar
K70: Apr
K71: May
K72: Jun
K73: Jul
K74: Aug
K75: Sep
K76: Oct
K77: Nov
K78: Dec
K79: Annual | L79: =AVERAGE(L67:L78) ->  | M79: =MAX(M67:M78) -> 0 | N79: =AVERAGE(N67:N78) ->  | O79: =MAX(O67:O78) -> 0

Sheet NOx
A1: =+'Cover Page'!$B$29 -> Annual Performance Report 2021 | E1: =+'Cover Page'!$B$33 -> Tyseley Energy from Waste Plant
A3: Monitoring of Oxides of Nitrogen emissions | D3: Whole Installation | J3: =+A3 -> Monitoring of Oxides of Nitrogen emissions | N3: Per Combustion Line | Q3: Notes:
Q4: User to add logic to complete Whole installation, Table A5:G18. From the data in Per Combustion Line, Table J6:O79, subject to No. of lines installed
A5: mg/Nm3 | B5: 1/2 Hourly Reference Periods | E5: Daily Reference Periods
A6: =+'Cover Page'!C39 -> 2021 | B6: 1/2 hourly NOx ELV | C6: Monthly 1/2 hourly mean | D6: Highest 1/2 hourly maximum | E6: Daily NOx ELV | F6: Monthly daily mean | G6: Highest daily maximum | J6: =+A6 -> 2021 | K6: mg/Nm3 | L6: Monthly 1/2 hourly mean | M6: Monthly 1/2 hourly maximum | N6: Monthly daily mean | O6: Monthly daily maximum
A7: Jan | B7: 400 | C7: =AVERAGE(L7,L22) -> 176.695 | D7: =MAX(M7,M22) -> 252.97 | E7: 200 | F7: =AVERAGE(N7,N22) -> 176.965 | G7: =MAX(O7,O22) -> 194.98 | J7: A1 | K7: Jan | L7: 178.03 | M7: 252.97 | N7: 178.03 | O7: 194.98
A8: Feb | B8: 400 | C8: =AVERAGE(L8,L23) -> 179.88 | D8: =MAX(M8,M23) -> 260.22 | E8: 200 | F8: =AVERAGE(N8,N23) -> 179.99 | G8: =MAX(O8,O23) -> 191.97 | K8: Feb | L8: 179.92 | M8: 260.22 | N8: 180.21 | O8: 191.67
A9: Mar | B9: 400 | C9: 174.08 | D9: 306.89 | E9: 200 | F9: 173.97 | G9: 190.36 | K9: Mar | L9: 173.15 | M9: 214.62 | N9: 173.15 | O9: 190.36 | Q9: Whole Installation table A5:G18:
A10: Apr | B10: 400 | C10: 173.565 | D10: 231.09 | E10: 200 | F10: 173.565 | G10: 190.18 | K10: Apr | L10: 171.9 | M10: 228.99 | N10: 171.9 | O10: 186.88 | Q10: Mean: for 1/2 hourly and daily periods calculate mean of values across all operational combustion lines for the month
A11: May | B11: 400 | C11: 175.68 | D11: 255.7 | E11: 200 | F11: 175.595 | G11: 195.5 | K11: May | L11: 173.07 | M11: 240.44 | N11: 173.07 | O11: 186.57
A12: Jun | B12: 400 | C12: 157.48 | D12: 206.96 | E12: 200 | F12: 158.205 | G12: 175.15 | K12: Jun | L12: 158.02 | M12: 199.42 | N12: 157.55 | O12: 171.2
A13: Jul | B13: 400 | C13: 152.465 | D13: 283.99 | E13: 200 | F13: 152.835 | G13: 193.06 | K13: Jul | L13: 140.16 | M13: 248.58 | N13: 140.91 | O13: 163.89 | Q13: Maximum: for 1/2 hourly and daily periods use the highest value across all operational combustion lines for the month
A14: Aug | B14: 400 | C14: =AVERAGE(L14,L29) -> 150.835 | D14: 256.24 | E14: 200 | F14: 150.725 | G14: =MAX(O14,O29) -> 188.33 | K14: Aug | L14: 137.74 | M14: 230 | N14: 137.51 | O14: 168.74
A15: Sep | B15: 400 | C15: 152.315 | D15: 234.27 | E15: 200 | F15: 152.25 | G15: 180.27 | K15: Sep | L15: 139.19 | M15: 178.89 | N15: 139.06 | O15: 153.28
A16: Oct | B16: 400 | C16: 155.895 | D16: 297.36 | E16: 200 | F16: =AVERAGE(N16,N31) -> 156.085 | G16: 188.78 | K16: Oct | L16: 143.36 | M16: 190.97 | N16: 143.73 | O16: 165.77
A17: Nov | B17: 400 | C17: 157.005 | D17: 251.76 | E17: 200 | F17: 157.06 | G17: 184.79 | K17: Nov | L17: 146.58 | M17: 210.91 | N17: 146.58 | O17: 161.17
A18: Dec | B18: 400 | C18: 165.24 | D18: =MAX(M18,M33) -> 227.03 | E18: 200 | F18: 166.01 | G18: 179.17 | K18: Dec | L18: 168.56 | M18: 200.2 | N18: 168.91 | O18: 177.2
K19: Annual | L19: =AVERAGE(L7:L18) -> 159.14 | M19: =MAX(M7:M18) -> 260.22 | N19: =AVERAGE(N7:N18) -> 159.2175 | O19: =MAX(O7:O18) -> 194.98
J21: =+A6 -> 2021 | K21: mg/Nm3 | L21: Monthly 1/2 hourly mean | M21: Monthly 1/2 hourly maximum | N21: Monthly daily mean | O21: Monthly daily maximum
J22: A2 | K22: Jan | L22: 175.36 | M22: 230.15 | N22: 175.9 | O22: 190.88
K23: Feb | L23: 179.84 | M23: 179.86 | N23: 179.77 | O23: 191.97
K24: Mar | L24: 175.01 | M24: 306.89 | N24: 174.79 | O24: 188.36
K25: Apr | L25: 175.23 | M25: 231.09 | N25: 175.23 | O25: 190.18
K26: May | L26: 178.29 | M26: 255.7 | N26: 178.12 | O26: 195.5
K27: Jun | L27: 156.94 | M27: 206.96 | N27: 158.86 | O27: 175.15
K28: Jul | L28: 164.77 | M28: 283.99 | N28: 164.76 | O28: 193.06
K29: Aug | L29: 163.93 | M29: 256.24 | N29: 163.94 | O29: 188.33
K30: Sep | L30: 165.44 | M30: 234.27 | N30: 165.44 | O30: 180.27
K31: Oct | L31: 168.43 | M31: 297.36 | N31: 168.44 | O31: 188.78
K32: Nov | L32: 167.43 | M32: 251.76 | N32: 167.54 | O32: 184.79
K33: Dec | L33: 161.92 | M33: 227.03 | N33: 163.11 | O33: 179.17
K34: Annual | L34: =AVERAGE(L22:L33) -> 169.3825 | M34: =MAX(M22:M33) -> 306.89 | N34: =AVERAGE(N22:N33) -> 169.6583333 | O34: =MAX(O22:O33) -> 195.5
J36: =+A6 -> 2021 | K36: mg/Nm3 | L36: Monthly 1/2 hourly mean | M36: Monthly 1/2 hourly maximum | N36: Monthly daily mean | O36: Monthly daily maximum
J37: A3 | K37: Jan
K38: Feb
K39: Mar
K40: Apr
K41: May
K42: Jun
K43: Jul
K44: Aug
K45: Sep
K46: Oct
K47: Nov
A48: Comments : | K48: Dec
K49: Annual | L49: =AVERAGE(L37:L48) ->  | M49: =MAX(M37:M48) -> 0 | N49: =AVERAGE(N37:N48) ->  | O49: =MAX(O37:O48) -> 0
J51: =+A6 -> 2021 | K51: mg/Nm3 | L51: Monthly 1/2 hourly mean | M51: Monthly 1/2 hourly maximum | N51: Monthly daily mean | O51: Monthly daily maximum
J52: A4 | K52: Jan
K53: Feb
K54: Mar
K55: Apr
K56: May
K57: Jun
K58: Jul
K59: Aug
K60: Sep
K61: Oct
K62: Nov
K63: Dec
K64: Annual | L64: =AVERAGE(L52:L63) ->  | M64: =MAX(M52:M63) -> 0 | N64: =AVERAGE(N52:N63) ->  | O64: =MAX(O52:O63) -> 0
J66: =+A6 -> 2021 | K66: mg/Nm3 | L66: Monthly 1/2 hourly mean | M66: Monthly 1/2 hourly maximum | N66: Monthly daily mean | O66: Monthly daily maximum
J67: A5 | K67: Jan
K68: Feb
K69: Mar
K70: Apr
K71: May
K72: Jun
K73: Jul
K74: Aug
K75: Sep
K76: Oct
K77: Nov
K78: Dec
K79: Annual | L79: =AVERAGE(L67:L78) ->  | M79: =MAX(M67:M78) -> 0 | N79: =AVERAGE(N67:N78) ->  | O79: =MAX(O67:O78) -> 0

Sheet TOC
A1: =+'Cover Page'!$B$29 -> Annual Performance Report 2021 | E1: =+'Cover Page'!$B$33 -> Tyseley Energy from Waste Plant
A3: Monitoring of Total organic carbon emissions | D3: Whole Installation | J3: =+A3 -> Monitoring of Total organic carbon emissions | N3: Per Combustion Line | Q3: Notes:
Q4: User to add logic to complete Whole installation, Table A5:G18. From the data in Per Combustion Line, Table J6:O79, subject to No. of lines installed
A5: mg/Nm3 | B5: 1/2 Hourly Reference Periods | E5: Daily Reference Periods
A6: =+'Cover Page'!C39 -> 2021 | B6: 1/2 hourly TOC ELV | C6: Monthly 1/2 hourly mean | D6: Highest 1/2 hourly maximum | E6: Daily TOC ELV | F6: Monthly daily mean | G6: Highest daily maximum | J6: =+A6 -> 2021 | K6: mg/Nm3 | L6: Monthly 1/2 hourly mean | M6: Monthly 1/2 hourly maximum | N6: Monthly daily mean | O6: Monthly daily maximum
A7: Jan | B7: 20 | C7: =AVERAGE(L7,L22) -> 1.27 | D7: =MAX(M7,M22) -> 12.71 | E7: 10 | F7: =AVERAGE(N7,N22) -> 1.26 | G7: =MAX(O7,O22) -> 1.81 | J7: A1 | K7: Jan | L7: 1.21 | M7: 5.58 | N7: 1.21 | O7: 1.43
A8: Feb | B8: 20 | C8: =AVERAGE(L8,L23) -> 1.275 | D8: =MAX(M8,M23) -> 7.64 | E8: 10 | F8: =AVERAGE(N8,N23) -> 1.29 | G8: =MAX(O8,O23) -> 2.35 | K8: Feb | L8: 1.16 | M8: 2.33 | N8: 1.15 | O8: 1.29
A9: Mar | B9: 20 | C9: 1.24 | D9: 14.05 | E9: 10 | F9: 1.25 | G9: 1.69 | K9: Mar | L9: 1.13 | M9: 2.76 | N9: 1.13 | O9: 1.26 | Q9: Whole Installation table A5:G18:
A10: Apr | B10: 20 | C10: 1.245 | D10: 8.04 | E10: 10 | F10: 1.245 | G10: 1.58 | K10: Apr | L10: 1.15 | M10: 2.31 | N10: 1.15 | O10: 1.25 | Q10: Mean: for 1/2 hourly and daily periods calculate mean of values across all operational combustion lines for the month
A11: May | B11: 20 | C11: 1.3 | D11: 12.65 | E11: 10 | F11: 0.81 | G11: 2.02 | K11: May | L11: 1.09 | M11: 1.68 | N11: 0.09 | O11: 1.24
A12: Jun | B12: 20 | C12: 1.345 | D12: 6.37 | E12: 10 | F12: 1.355 | G12: =MAX(O12,O27) -> 1.88 | K12: Jun | L12: 1.22 | M12: 3.59 | N12: 1.21 | O12: 1.58
A13: Jul | B13: 20 | C13: 1.01 | D13: 9.26 | E13: 10 | F13: 1 | G13: 2.54 | K13: Jul | L13: 0.91 | M13: 2.28 | N13: 0.89 | O13: 1.22 | Q13: Maximum: for 1/2 hourly and daily periods use the highest value across all operational combustion lines for the month
A14: Aug | B14: 20 | C14: 0.865 | D14: 5.72 | E14: 10 | F14: 0.865 | G14: 1.13 | K14: Aug | L14: 1.03 | M14: 2.13 | N14: 1.03 | O14: 1.13
A15: Sep | B15: 20 | C15: 0.435 | D15: 2.23 | E15: 10 | F15: 0.44 | G15: 0.95 | K15: Sep | L15: 0.18 | M15: 1.09 | N15: 0.19 | O15: 0.42
A16: Oct | B16: 20 | C16: 0.42 | D16: =MAX(M16,M31) -> 3.84 | E16: 10 | F16: 0.42 | G16: 1.13 | K16: Oct | L16: 0.25 | M16: 1.17 | N16: 0.25 | O16: 0.35
A17: Nov | B17: 20 | C17: 0.23 | D17: 1.38 | E17: 10 | F17: 0.235 | G17: 0.73 | K17: Nov | L17: 0.24 | M17: 0.83 | N17: 0.24 | O17: 0.33
A18: Dec | B18: 20 | C18: 0.29 | D18: 6.36 | E18: 10 | F18: 0.29 | G18: 0.82 | K18: Dec | L18: 0.14 | M18: 1.6 | N18: 0.14 | O18: 0.22
K19: Annual | L19: =AVERAGE(L7:L18) -> 0.8091666667 | M19: =MAX(M7:M18) -> 5.58 | N19: =AVERAGE(N7:N18) -> 0.7233333333 | O19: =MAX(O7:O18) -> 1.58
J21: =+A6 -> 2021 | K21: mg/Nm3 | L21: Monthly 1/2 hourly mean | M21: Monthly 1/2 hourly maximum | N21: Monthly daily mean | O21: Monthly daily maximum
J22: A2 | K22: Jan | L22: 1.33 | M22: 12.71 | N22: 1.31 | O22: 1.81
K23: Feb | L23: 1.39 | M23: 7.64 | N23: 1.43 | O23: 2.35
K24: Mar | L24: 1.35 | M24: 14.05 | N24: 1.37 | O24: 1.69
K25: Apr | L25: 1.34 | M25: 8.04 | N25: 1.34 | O25: 1.58
K26: May | L26: 1.51 | M26: 12.65 | N26: 1.53 | O26: 2.02
K27: Jun | L27: 1.47 | M27: 6.37 | N27: 1.5 | O27: 1.88
K28: Jul | L28: 1.11 | M28: 9.26 | N28: 1.11 | O28: 2.54
K29: Aug | L29: 0.7 | M29: 5.72 | N29: 0.7 | O29: 1.11
K30: Sep | L30: 0.69 | M30: 2.23 | N30: 0.69 | O30: 0.95
K31: Oct | L31: 0.59 | M31: 3.84 | N31: 0.59 | O31: 1.13
K32: Nov | L32: 0.22 | M32: 1.38 | N32: 0.23 | O32: 0.73
K33: Dec | L33: 0.44 | M33: 6.36 | N33: 0.44 | O33: 0.82
K34: Annual | L34: =AVERAGE(L22:L33) -> 1.011666667 | M34: =MAX(M22:M33) -> 14.05 | N34: =AVERAGE(N22:N33) -> 1.02 | O34: =MAX(O22:O33) -> 2.54
J36: =+A6 -> 2021 | K36: mg/Nm3 | L36: Monthly 1/2 hourly mean | M36: Monthly 1/2 hourly maximum | N36: Monthly daily mean | O36: Monthly daily maximum
J37: A3 | K37: Jan
K38: Feb
K39: Mar
K40: Apr
K41: May
K42: Jun
K43: Jul
K44: Aug
K45: Sep
K46: Oct
K47: Nov
A48: Comments : | K48: Dec
K49: Annual | L49: =AVERAGE(L37:L48) ->  | M49: =MAX(M37:M48) -> 0 | N49: =AVERAGE(N37:N48) ->  | O49: =MAX(O37:O48) -> 0
J51: =+A6 -> 2021 | K51: mg/Nm3 | L51: Monthly 1/2 hourly mean | M51: Monthly 1/2 hourly maximum | N51: Monthly daily mean | O51: Monthly daily maximum
J52: A4 | K52: Jan
K53: Feb
K54: Mar
K55: Apr
K56: May
K57: Jun
K58: Jul
K59: Aug
K60: Sep
K61: Oct
K62: Nov
K63: Dec
K64: Annual | L64: =AVERAGE(L52:L63) ->  | M64: =MAX(M52:M63) -> 0 | N64: =AVERAGE(N52:N63) ->  | O64: =MAX(O52:O63) -> 0
J66: =+A6 -> 2021 | K66: mg/Nm3 | L66: Monthly 1/2 hourly mean | M66: Monthly 1/2 hourly maximum | N66: Monthly daily mean | O66: Monthly daily maximum
J67: A5 | K67: Jan
K68: Feb
K69: Mar
K70: Apr
K71: May
K72: Jun
K73: Jul
K74: Aug
K75: Sep
K76: Oct
K77: Nov
K78: Dec
K79: Annual | L79: =AVERAGE(L67:L78) ->  | M79: =MAX(M67:M78) -> 0 | N79: =AVERAGE(N67:N78) ->  | O79: =MAX(O67:O78) -> 0

Sheet Particulates
A1: =+'Cover Page'!$B$29 -> Annual Performance Report 2021 | E1: =+'Cover Page'!$B$33 -> Tyseley Energy from Waste Plant
A3: Monitoring of Particulate matter emissions | D3: Whole Installation | J3: =+A3 -> Monitoring of Particulate matter emissions | N3: Per Combustion Line | Q3: Notes:
Q4: User to add logic to complete Whole installation, Table A5:G18. From the data in Per Combustion Line, Table J6:O79, subject to No. of lines installed
A5: mg/Nm3 | B5: 1/2 Hourly Reference Periods | E5: Daily Reference Periods
A6: =+'Cover Page'!C39 -> 2021 | B6: 1/2 hourly PM ELV | C6: Monthly 1/2 hourly mean | D6: Highest 1/2 hourly maximum | E6: Daily PM ELV | F6: Monthly daily mean | G6: Highest daily maximum | J6: =+A6 -> 2021 | K6: mg/Nm3 | L6: Monthly 1/2 hourly mean | M6: Monthly 1/2 hourly maximum | N6: Monthly daily mean | O6: Monthly daily maximum
A7: Jan | B7: 30 | C7: =AVERAGE(L7,L22) -> 1.12 | D7: =MAX(M7,M22) -> 14.72 | E7: 10 | F7: =AVERAGE(N7,N22) -> 1.05 | G7: =MAX(O7,O22) -> 3.49 | J7: A1 | K7: Jan | L7: 1.12 | M7: 1.81 | N7: 1.12 | O7: 1.61
A8: Feb | B8: 30 | C8: =AVERAGE(L8,L23) -> 0.575 | D8: =MAX(M8,M23) -> 2.33 | E8: 10 | F8: =AVERAGE(N8,N23) -> 0.585 | G8: =MAX(O8,O23) -> 1.69 | K8: Feb | L8: 0.85 | M8: 2.33 | N8: 0.87 | O8: 1.69
A9: Mar | B9: 30 | C9: 0.385 | D9: 5.99 | E9: 10 | F9: 0.39 | G9: 0.73 | K9: Mar | L9: 0.5 | M9: 3.13 | N9: 0.5 | O9: 0.73 | Q9: Whole Installation table A5:G18:
A10: Apr | B10: 30 | C10: =AVERAGE(L10,L25) -> 0.305 | D10: 2.56 | E10: 10 | F10: 0.305 | G10: 0.59 | K10: Apr | L10: 0.4 | M10: 0.89 | N10: 0.4 | O10: 0.59 | Q10: Mean: for 1/2 hourly and daily periods calculate mean of values across all operational combustion lines for the month
A11: May | B11: 30 | C11: 0.64 | D11: 4.33 | E11: 10 | F11: 0.64 | G11: 2.71 | K11: May | L11: 1.05 | M11: 4.33 | N11: 1.05 | O11: 2.71
A12: Jun | B12: 30 | C12: 1.36 | D12: 5.57 | E12: 10 | F12: 1.32 | G12: 3.39 | K12: Jun | L12: 2.51 | M12: 5.57 | N12: 2.44 | O12: 3.39
A13: Jul | B13: 30 | C13: 0.26 | D13: 2.77 | E13: 10 | F13: 0.26 | G13: 0.81 | K13: Jul | L13: 0.18 | M13: 1.09 | N13: 0.18 | O13: 0.31 | Q13: Maximum: for 1/2 hourly and daily periods use the highest value across all operational combustion lines for the month
A14: Aug | B14: 30 | C14: 0.46 | D14: 2.75 | E14: 10 | F14: 0.47 | G14: 1.31 | K14: Aug | L14: 0.69 | M14: 2.75 | N14: 0.71 | O14: 1.31
A15: Sep | B15: 30 | C15: 0.89 | D15: 6.46 | E15: 10 | F15: 0.885 | G15: 2.64 | K15: Sep | L15: 1.62 | M15: 6.46 | N15: 1.61 | O15: 2.64
A16: Oct | B16: 30 | C16: 1.065 | D16: 7.72 | E16: 10 | F16: 1.065 | G16: =MAX(O16,O31) -> 3.24 | K16: Oct | L16: 1.93 | M16: 7.72 | N16: 1.93 | O16: 3.24
A17: Nov | B17: 30 | C17: 0.815 | D17: 5.29 | E17: 10 | F17: 0.815 | G17: 2.63 | K17: Nov | L17: 1.41 | M17: 5.29 | N17: 1.41 | O17: 2.63
A18: Dec | B18: 30 | C18: 0.67 | D18: 10.95 | E18: 10 | F18: 0.66 | G18: 1.33 | K18: Dec | L18: 0.85 | M18: 10.95 | N18: 0.82 | O18: 1.33
K19: Annual | L19: =AVERAGE(L7:L18) -> 1.0925 | M19: =MAX(M7:M18) -> 10.95 | N19: =AVERAGE(N7:N18) -> 1.086666667 | O19: =MAX(O7:O18) -> 3.39
J21: =+A6 -> 2021 | K21: mg/Nm3 | L21: Monthly 1/2 hourly mean | M21: Monthly 1/2 hourly maximum | N21: Monthly daily mean | O21: Monthly daily maximum
J22: A2 | K22: Jan | L22: 1.12 | M22: 14.72 | N22: 0.98 | O22: 3.49
K23: Feb | L23: 0.3 | M23: 1.38 | N23: 0.3 | O23: 0.59
K24: Mar | L24: 0.27 | M24: 5.99 | N24: 0.28 | O24: 0.56
K25: Apr | L25: 0.21 | M25: 2.56 | N25: 0.21 | O25: 0.44
K26: May | L26: 0.23 | M26: 1.5 | N26: 0.23 | O26: 0.42
K27: Jun | L27: 0.21 | M27: 1.97 | N27: 0.2 | O27: 0.31
K28: Jul | L28: 0.34 | M28: 2.77 | N28: 0.34 | O28: 0.81
K29: Aug | L29: 0.23 | M29: 2.07 | N29: 0.23 | O29: 0.36
K30: Sep | L30: 0.16 | M30: 1.69 | N30: 0.16 | O30: 0.33
K31: Oct | L31: 0.2 | M31: 0.99 | N31: 0.2 | O31: 0.35
K32: Nov | L32: 0.22 | M32: 1.45 | N32: 0.22 | O32: 0.37
K33: Dec | L33: 0.49 | M33: 2.73 | N33: 0.5 | O33: 1.14
K34: Annual | L34: =AVERAGE(L22:L33) -> 0.3316666667 | M34: =MAX(M22:M33) -> 14.72 | N34: =AVERAGE(N22:N33) -> 0.3208333333 | O34: =MAX(O22:O33) -> 3.49
J36: =+A6 -> 2021 | K36: mg/Nm3 | L36: Monthly 1/2 hourly mean | M36: Monthly 1/2 hourly maximum | N36: Monthly daily mean | O36: Monthly daily maximum
J37: A3 | K37: Jan
K38: Feb
K39: Mar
K40: Apr
K41: May
K42: Jun
K43: Jul
K44: Aug
K45: Sep
K46: Oct
K47: Nov
A48: Comments : | K48: Dec
K49: Annual | L49: =AVERAGE(L37:L48) ->  | M49: =MAX(M37:M48) -> 0 | N49: =AVERAGE(N37:N48) ->  | O49: =MAX(O37:O48) -> 0
J51: =+A6 -> 2021 | K51: mg/Nm3 | L51: Monthly 1/2 hourly mean | M51: Monthly 1/2 hourly maximum | N51: Monthly daily mean | O51: Monthly daily maximum
J52: A4 | K52: Jan
K53: Feb
K54: Mar
K55: Apr
K56: May
K57: Jun
K58: Jul
K59: Aug
K60: Sep
K61: Oct
K62: Nov
K63: Dec
K64: Annual | L64: =AVERAGE(L52:L63) ->  | M64: =MAX(M52:M63) -> 0 | N64: =AVERAGE(N52:N63) ->  | O64: =MAX(O52:O63) -> 0
J66: =+A6 -> 2021 | K66: mg/Nm3 | L66: Monthly 1/2 hourly mean | M66: Monthly 1/2 hourly maximum | N66: Monthly daily mean | O66: Monthly daily maximum
J67: A5 | K67: Jan
K68: Feb
K69: Mar
K70: Apr
K71: May
K72: Jun
K73: Jul
K74: Aug
K75: Sep
K76: Oct
K77: Nov
K78: Dec
K79: Annual | L79: =AVERAGE(L67:L78) ->  | M79: =MAX(M67:M78) -> 0 | N79: =AVERAGE(N67:N78) ->  | O79: =MAX(O67:O78) -> 0

Sheet CO 95% 10 min
A1: =+'Cover Page'!$B$29 -> Annual Performance Report 2021 | E1: =+'Cover Page'!$B$33 -> Tyseley Energy from Waste Plant
A3: Monitoring of Carbon Monoxide (10-minute avg) | E3: Whole Installation | J3: =+A3 -> Monitoring of Carbon Monoxide (10-minute avg) | O3: Per Combustion Line | Q3: Notes: | S3: Notes:
S4: User to add logic to complete Whole installation, Table A5:H18. From the data in Per Combustion Line, Table K6:Q79, subject to No. of lines installed
A5: mg/Nm3 | B5: 10-minute Reference Periods | F5: Daily Reference Periods
A6: =+'Cover Page'!C39 -> 2021 | B6: 95%ile 10-min avg CO ELV | C6: 95%ile 10-min avg maximum | D6: Monthly CO 10-min avg mean | E6: 10-min avg maximum | F6: Daily CO ELV | G6: Monthly daily mean | H6: Highest daily maximum | K6: =+A6 -> 2021 | L6: mg/Nm3 | M6: 95%ile 10-min avg maximum | N6: Monthly CO 10-min avg mean | O6: 10-min avg maximum | P6: Monthly daily mean | Q6: Monthly daily maximum
A7: Jan | B7: 150 | C7: =MAX(M7,M22) -> 17.5 | D7: =AVERAGE(N7,N22) -> 13.165 | E7: =MAX(O7,O22) -> 1533.16 | F7: 50 | G7: =AVERAGE(P7,P22) -> 12.855 | H7: =MAX(Q7,Q22) -> 26.49 | K7: A1 | L7: Jan | M7: 17.5 | N7: 17.46 | O7: 252.63 | P7: 17.46 | Q7: 26.49
A8: Feb | B8: =+B7 -> 150 | C8: =MAX(M8,M23) -> 13.5 | D8: =AVERAGE(N8,N23) -> 11.815 | E8: =MAX(O8,O23) -> 502.73 | F8: =+F7 -> 50 | G8: =AVERAGE(P8,P23) -> 11.98 | H8: =MAX(Q8,Q23) -> 30 | L8: Feb | M8: 10.1 | N8: 10.09 | O8: 289.31 | P8: 10.1 | Q8: 20.33
A9: Mar | B9: =+B8 -> 150 | C9: 12.7 | D9: 11.83 | E9: 1134.91 | F9: =+F8 -> 50 | G9: 12.03 | H9: 27.26 | L9: Mar | M9: 11 | N9: 10.96 | O9: 808.1 | P9: 10.94 | Q9: 27.26 | S9: Whole Installation table A5:H18:
A10: Apr | B10: 150 | C10: 11.4 | D10: 10.31 | E10: 411.07 | F10: 50 | G10: 10.31 | H10: 22.99 | L10: Apr | M10: 11.4 | N10: 11.36 | O10: 411.07 | P10: 11.36 | Q10: 20.39 | S10: Mean: for 10-min and daily periods use average of all operational combustion lines.
A11: May | B11: 150 | C11: 14.4 | D11: 11.565 | E11: 714.7 | F11: 50 | G11: 11.565 | H11: 25.96 | L11: May | M11: 8.7 | N11: 8.68 | O11: 655.38 | P11: 8.66 | Q11: 17.87
A12: Jun | B12: 150 | C12: 13.7 | D12: 11.27 | E12: 341 | F12: 50 | G12: 11.235 | H12: 18.25 | L12: Jun | M12: 8.9 | N12: 8.86 | O12: 155.92 | P12: 8.63 | Q12: 12.32
A13: Jul | B13: 150 | C13: 9.7 | D13: 9.42 | E13: 845.62 | F13: 50 | G13: 9.425 | H13: =MAX(Q13,Q28) -> 24.73 | L13: Jul | M13: 9.1 | N13: 9.13 | O13: 226.41 | P13: 9.14 | Q13: 18.77 | S13: Maximum: for 10-min and daily periods use the highest of all operational combustion lines in any month.
A14: Aug | B14: 150 | C14: 12.5 | D14: 10.06 | E14: 340.02 | F14: 50 | G14: 10.07 | H14: 25.12 | L14: Aug | M14: 7.7 | N14: 7.66 | O14: 265.21 | P14: 7.69 | Q14: 16.75
A15: Sep | B15: 150 | C15: 14.8 | D15: 12.69 | E15: 786.98 | F15: 50 | G15: 12.76 | H15: 26.87 | L15: Sep | M15: 10.5 | N15: 10.53 | O15: 301.78 | P15: 10.67 | Q15: 26.87
A16: Oct | B16: 150 | C16: 15.1 | D16: 13.155 | E16: 416.4 | F16: 50 | G16: 13.185 | H16: 32.93 | L16: Oct | M16: 11.3 | N16: 11.26 | O16: 409.09 | P16: 11.32 | Q16: 23.21
A17: Nov | B17: 150 | C17: 11.3 | D17: 10.1 | E17: 1524.76 | F17: 50 | G17: 10.135 | H17: 20.64 | L17: Nov | M17: 8.9 | N17: 8.94 | O17: 1524.76 | P17: 8.95 | Q17: 20.64
A18: Dec | B18: 150 | C18: 12.7 | D18: 11.925 | E18: 489.04 | F18: 50 | G18: 11.98 | H18: 27.01 | L18: Dec | M18: 11.2 | N18: 11.21 | O18: 489.04 | P18: 11.33 | Q18: 27.01
L19: Annual | M19: =AVERAGE(M7:M18) -> 10.525 | N19: =AVERAGE(N7:N18) -> 10.51166667 | O19: =MAX(O7:O18) -> 1524.76 | P19: =AVERAGE(P7:P18) -> 10.52083333 | Q19: =MAX(Q7:Q18) -> 27.26
K21: =+A6 -> 2021 | L21: mg/Nm3 | M21: 95%ile 10-min avg maximum | N21: Monthly CO 10-min avg mean | O21: 10-min avg maximum | P21: Monthly daily mean | Q21: Monthly daily maximum
K22: A2 | L22: Jan | M22: 8.9 | N22: 8.87 | O22: 1533.16 | P22: 8.25 | Q22: 19.58
L23: Feb | M23: 13.5 | N23: 13.54 | O23: 502.73 | P23: 13.86 | Q23: 30
L24: Mar | M24: 12.7 | N24: 12.7 | O24: 1134.91 | P24: 13.12 | Q24: 26.58
L25: Apr | M25: 9.3 | N25: 9.26 | O25: 325.07 | P25: 9.26 | Q25: 22.99
L26: May | M26: 14.4 | N26: 14.45 | O26: 714.7 | P26: 14.47 | Q26: 25.96
L27: Jun | M27: 13.7 | N27: 13.68 | O27: 341 | P27: 13.84 | Q27: 18.25
L28: Jul | M28: 9.7 | N28: 9.71 | O28: 845.62 | P28: 9.71 | Q28: 24.73
L29: Aug | M29: 12.5 | N29: 12.46 | O29: 340.02 | P29: 12.45 | Q29: 25.12
L30: Sep | M30: 14.8 | N30: 14.85 | O30: 786.98 | P30: 14.85 | Q30: 26.27
L31: Oct | M31: 15.1 | N31: 15.05 | O31: 416.4 | P31: 15.05 | Q31: 32.93
L32: Nov | M32: 11.3 | N32: 11.26 | O32: 201.47 | P32: 11.32 | Q32: 17.21
L33: Dec | M33: 12.7 | N33: 12.64 | O33: 127.57 | P33: 12.63 | Q33: 22.59
L34: Annual | M34: =AVERAGE(M22:M33) -> 12.38333333 | N34: =AVERAGE(N22:N33) -> 12.3725 | O34: =MAX(O22:O33) -> 1533.16 | P34: =AVERAGE(P22:P33) -> 12.40083333 | Q34: =MAX(Q22:Q33) -> 32.93
K36: =+A6 -> 2021 | L36: mg/Nm3 | M36: 95%ile 10-min avg maximum | N36: Monthly CO 10-min avg mean | O36: 10-min avg maximum | P36: Monthly daily mean | Q36: Monthly daily maximum
K37: A3 | L37: Jan
L38: Feb
L39: Mar
L40: Apr
L41: May
L42: Jun
L43: Jul
L44: Aug
L45: Sep
L46: Oct
L47: Nov
A48: Comments : | L48: Dec
A49: Environment Agency explanatory note: The 10-minute average ELV is based on the “95th percentile”. In this case this means that 95% of the 10 minute averages in the relevant 24-hour period (i.e. 137) must be below 150 mg/Nm3, and 5% (i.e. 7) are allowed to be any value above 150 mg/Nm3. Whilst we expect operators to minimise CO emissions at all times, it is perfectly acceptable for the value of the maximum 10-minute average to be above 150 mg/Nm3, provided the 95th percentile ELV has been met for that period. | L49: Annual | M49: =AVERAGE(M37:M48) ->  | O49: =MAX(O37:O48) -> 0 | P49: =AVERAGE(P37:P48) ->  | Q49: =MAX(Q37:Q48) -> 0
K51: =+A6 -> 2021 | L51: mg/Nm3 | M51: 95%ile 10-min avg maximum | N51: Monthly CO 10-min avg mean | O51: 10-min avg maximum | P51: Monthly daily mean | Q51: Monthly daily maximum
K52: A4 | L52: Jan
L53: Feb
L54: Mar
L55: Apr
L56: May
L57: Jun
L58: Jul
L59: Aug
L60: Sep
L61: Oct
L62: Nov
L63: Dec
L64: Annual | M64: =AVERAGE(M52:M63) ->  | O64: =MAX(O52:O63) -> 0 | P64: =AVERAGE(P52:P63) ->  | Q64: =MAX(Q52:Q63) -> 0
K66: =+A6 -> 2021 | L66: mg/Nm3 | M66: 95%ile 10-min avg maximum | N66: Monthly CO 10-min avg mean | O66: 10-min avg maximum | P66: Monthly daily mean | Q66: Monthly daily maximum
K67: A5 | L67: Jan
L68: Feb
L69: Mar
L70: Apr
L71: May
L72: Jun
L73: Jul
L74: Aug
L75: Sep
L76: Oct
L77: Nov
L78: Dec
L79: Annual | M79: =AVERAGE(M67:M78) ->  | O79: =MAX(O67:O78) -> 0 | P79: =AVERAGE(P67:P78) ->  | Q79: =MAX(Q67:Q78) -> 0
